Cogmind - Beta 10.2 @@@ ROGUE MODE // 2022.01.08 @ 20:07:57 Player: lumberblack Result: Smashed by cave-in Performance ------------- Evolutions (0) 0 Regions Visited (1) 200 Robots Destroyed (4) 20 Value Destroyed (54) 54 Prototype IDs (0) 0 Alien Tech Used (0) 0 Bonus (0) 0 TOTAL SCORE: 274 Bonus ------- None Cogmind --------- Core Integrity 0/250 Matter 231/300 Energy 125/125 System Corruption 9% Temperature Cool (60) Movement Treading (160) Location -10/Materials Parts ------- > --- POWER (1) -------- Light Ion Engine > --- PROPULSION (2) --- Light Treads > --- UTILITY (2) ------ Small Storage Unit > --- WEAPON (2) ------- Beam Cannon > --- INVENTORY (6) ---- Ion Engine EM Pulse Gun EM Pulse Gun Assault Rifle Grenade Launcher Mining Laser Peak State ------------ > --- POWER ------------ Light Ion Engine > --- PROPULSION ------- Aluminum Leg Aluminum Leg > --- UTILITY ---------- Small Storage Unit Improved Terrain Scanner > --- WEAPON ----------- EM Pulse Gun Assault Rifle > --- INVENTORY -------- Ion Engine Light Treads Light Treads Wheel Compact Wheel Assault Rifle [Rating: 8] Favorites ----------- Power Light Ion Engine Engine Light Ion Engine Propulsion Light Treads Treads Light Treads Leg Aluminum Leg Wheel Wheel Utility Small Storage Unit Device Improved Terrain Scanner Storage Small Storage Unit Weapon Assault Rifle Energy Gun EM Pulse Gun Energy Cannon Beam Cannon Ballistic Gun Assault Rifle Special Weapon Mining Laser Build | -11 -10 ------- Run | Scr Mat Slots Evolved . | . . Power . | . . Propulsion . | . . Utility . | . . Weapon . | . . Parts Attached 10 | 4 6 Power . | . . Engine . | . . Core . | . . Reactor . | . . Propulsion 3 | 2 1 Treads 2 | 1 1 Leg . | . . Wheel 1 | 1 . Hover . | . . Flight . | . . Utility 1 | 1 . Device 1 | 1 . Storage . | . . Processor . | . . Hackware . | . . Protection . | . . Artifact . | . . Weapon 6 | 1 5 Energy Gun . | . . Energy Cannon 1 | . 1 Ballistic Gun 3 | 1 2 Ballistic Cannon . | . . Launcher . | . . Special Weapon 2 | . 2 Impact Weapon . | . . Slashing Weapon . | . . Piercing Weapon . | . . Special Melee Weapon . | . . Unidentified Prototypes . | . . Parts Lost 3 | . 3 Power . | . . Propulsion 1 | . 1 Utility 1 | . 1 Weapon 1 | . 1 Highest Loss Streak 3 | . 3 Average Slot Usage (%) 99 | . 99 Engine 14 | . 14 Treads 19 | . 19 Wheel 8 | . 8 Device 13 | . 13 Storage 14 | . 14 Energy Cannon 13 | . 13 Ballistic Gun 11 | . 11 Special Weapon 2 | . 2 Naked Turns . | . . Heaviest Build 13 | 12 13 Greatest Support 40 | 20 40 Greatest Overweight (x) 1 | 1 1 Average Overweight (x) . | . . Largest Inventory Capacity 6 | 6 6 Average Capacity 6 | 6 6 Most Carried 6 | 6 6 Average Carried 5 | 4 5 Final Capacity 6 | 6 6 Final Carried 6 | 4 6 Class Distribution -------------------- 100% | Mutant Dominant Class ---------------- Mutant | -10/Materials Resources | -11 -10 ----------- Run | Scr Mat Matter Collected 255 | 255 . Remotely . | . . Salvage Created 181 | 142 39 Parts 10 | 8 2 Haulers Intercepted . | . . Recyclers Shooed . | . . Parts Field Recycled . | . . Retrieved Matter . | . . Parts Self-Destructed . | . . Prevented . | . . Kills | -11 -10 ------- Run | Scr Mat Combat Hostiles Destroyed 1 | . 1 Cannons 1 | . 1 Classes Destroyed 3 | 2 1 Tunneler 2 | 2 . Recycler 1 | 1 . Grunt 1 | . 1 Best Kill Streak 2 | 2 1 Combat Bots Only 1 | . 1 Max Kills in Single Turn 1 | 1 1 Gunslinging . | . . Exploded . | . . Melee . | . . Uniques/NPCs Destroyed . | . . Combat | -11 -10 -------- Run | Scr Mat Damage Taken 729 | . 729 Core 276 | . 276 Absorbed by Shields . | . . Core Remaining (%) 100 | 100 . Volleys Fired 22 | 5 17 Largest 2 | 2 2 Hottest 100 | 60 100 Shots Fired 31 | 10 21 Gun 18 | 10 8 Cannon 4 | . 4 Launcher . | . . Special 9 | . 9 Kinetic 13 | 5 8 Thermal 13 | . 13 Explosive . | . . Electromagnetic 5 | 5 . Robot Hit Streak 8 | 4 8 Robot Miss Streak 4 | 4 1 Penetration Max . | . . Secondary Targets . | . . Shots Hit Robots 15 | 5 10 Core Hits 6 | 4 2 Critical Hits . | . . Critical Kills . | . . Critical Parts Destroyed . | . . Melee Attacks . | . . Impact . | . . Slashing . | . . Piercing . | . . Sneak Attacks . | . . Combat Hostiles . | . . Follow-up Attacks . | . . Damage Inflicted 218 | 67 151 Guns 149 | 67 82 Cannons 69 | . 69 Explosions . | . . Melee . | . . Ramming . | . . Kinetic 112 | 30 82 Thermal 69 | . 69 Explosive . | . . Electromagnetic 37 | 37 . Impact . | . . Slashing . | . . Piercing . | . . Highest Corruption 4 | . 4 Average Corruption 4 | . 4 Corruption Purged . | . . Effects 1 | . 1 Targeting Errors 1 | . 1 Overload Shots . | . . Overflow Damage . | . . Projectiles . | . . Explosions . | . . Melee . | . . Knockbacks . | . . Impact . | . . Kinetic . | . . Secondary . | . . Self-Inflicted Damage . | . . Shots . | . . Rammed . | . . Targets Rammed . | . . Kicked . | . . Crushed . | . . Highest Temperature 62 | . 62 Average Temperature 28 | . 28 Received Heat Transfer 39 | . 39 Siege Activations . | . . Robots Corrupted . | . . Combat Hostiles . | . . Parts Fried . | . . Impact Corruptions . | . . Robots Melted . | . . Combat Hostiles . | . . Parts Melted . | . . Heat Transferred 148 | . 148 Parts Sabotaged . | . . Parts Stolen . | . . Parts Stripped . | . . Power Chain Reactions . | . . Missiles Intercepted . | . . Alert | -11 -10 ------- Run | Scr Mat Peak Influence 37 | 15 37 Initial 9 | . 9 Average 15 | 10 17 Maximum Alert Level . | . . Low Security (%) 100 | 100 100 Level 1 . | . . Level 2 . | . . Level 3 . | . . Level 4 . | . . Level 5 . | . . High Security . | . . Max Security . | . . Squads Dispatched 2 | . 2 Investigation . | . . Extermination . | . . Reinforcement 2 | . 2 Assault . | . . Garrison . | . . Intercept . | . . Construction Impeded . | . . Haulers Reinforced . | . . Stealth | -11 -10 --------- Run | Scr Mat Distress Signals . | . . Communications Jammed . | . . Distress Signals . | . . Times Spotted 5 | . 5 Peak Tracking Total 3 | . 3 Tactical Retreats . | . . Traps | -11 -10 ------- Run | Scr Mat Traps Triggered . | . . Indirectly . | . . Trap Hack Attempts . | . . Triggered . | . . Disarmed . | . . Reprogrammed . | . . Reused . | . . Traps Extracted . | . . Installed . | . . Triggered . | . . Machines | -11 -10 ---------- Run | Scr Mat Machines Disabled . | . . Max in Single Turn . | . . Machines Sabotaged . | . . Garrisons Compromised . | . . Overloaded Fab Kills . | . . Fab Network Shutdowns . | . . Hacking | -11 -10 --------- Run | Scr Mat Machines Accessed 1 | . 1 Terminals . | . . Fabricators . | . . Repair Stations . | . . Recycling Units 1 | . 1 Scanalyzers . | . . Garrison Access . | . . Total Hacks 1 | . 1 Successful 1 | . 1 Failed . | . . Catastrophic . | . . Database Lockouts . | . . Manual 1 | . 1 Terminals . | . . Fabricators . | . . Repair Stations . | . . Recycling Units 1 | . 1 Scanalyzers . | . . Garrison Access . | . . Terminal Hacks . | . . Fabricator Hacks . | . . Repair Station Hacks . | . . Recycling Unit Hacks . | . . Scanalyzer . | . . Garrison Access Hacks . | . . Unauthorized Hacks 1 | . 1 Terminals . | . . Fabricators . | . . Repair Stations . | . . Recycling Units 1 | . 1 Recyclers 1 | . 1 Scanalyzers . | . . Garrison Access . | . . Data Cores Recovered . | . . Used . | . . Hacking Detections . | . . Full Trace Events . | . . Feedback Events . | . . Feedback Blocked . | . . Robot Schematics Acquired . | . . Robots Built . | . . Matter . | . . Time . | . . Total Robot Build Rating . | . . Part Schematics Acquired . | . . Parts Built . | . . Matter . | . . Time . | . . Total Part Build Rating . | . . Parts Repaired . | . . Time . | . . Parts Recycled . | . . Recycled Matter . | . . Retrieved Matter . | . . Retrieved Components . | . . Parts Scanalyzed . | . . Part Schematics Acquired . | . . Parts Damaged . | . . Bothacking | -11 -10 ------------ Run | Scr Mat Used RIF Installer . | . . Robots Hacked . | . . Non-combat . | . . Combat . | . . Robot Hacks Applied . | . . Relay Couplers Released . | . . Robots Rewired . | . . Allies Hacked . | . . Hacks Repelled . | . . Allies | -11 -10 -------- Run | Scr Mat Total Allies . | . . Largest Group . | . . Highest-Rated Group . | . . Highest-Rated Ally . | . . Total Orders . | . . Ally Attacks . | . . Total Damage . | . . Kills . | . . Allies Corrupted . | . . Allies Melted . | . . Intel | -11 -10 ------- Run | Scr Mat Robot Analysis Total . | . . Derelict Logs Recovered . | . . Drone Launches . | . . Drone Recoveries . | . . Exploration | -11 -10 ------------- Run | Scr Mat Turns Passed 325 | 71 254 Spaces Moved 105 | 31 74 Core . | . . Treads 30 | . 30 Legs 12 | 12 . Wheels 63 | 19 44 Hover . | . . Flight . | . . Fastest Speed 90 | 90 90 Average Speed 113 | 101 118 Slowest Speed 160 | 120 160 Overloaded Moves . | . . Propulsion Burnouts . | . . Robots Hopped . | . . Cave-ins Triggered 2 | . 2 Exploration Rate (%) 10 | 3 18 Regions Visited 1 Branch Regions . Pre-discovered Areas . | . . Known Exits Taken . | . . Unknown Exits Taken 1 | 1 . Scrap Searched . | . . Spaces Dug 9 | . 9 Terrain Destroyed 9 | . 9 Melee . | . . Projectile 9 | . 9 AOE . | . . Terrain Rammed . | . . Walls Destroyed . | . . Machines Disabled . | . . Actions | -11 -10 --------- Run | Scr Mat Total 260 | 60 200 Wait 116 | 17 99 Move 104 | 30 74 Hop . | . . Pick Up 3 | 1 2 Fast Attach 2 | 1 1 Attach 3 | 2 1 Detach 1 | . 1 Swap 5 | 1 4 Drop 4 | 3 1 Fire 22 | 5 17 Melee . | . . Ram . | . . Kick . | . . Crush . | . . Escape Stasis . | . . Rewire . | . . Trap . | . . Miscellaneous . | . . Route ------- -11/Scrapyard -10/Materials (discovered 1 exit: [*Min]) History --------- Turn | Location | Event 1 | -11/Scrapyard | Discovered new exit (range 3) 72 | -11/Scrapyard | Entered Materials 300 | -10/Materials | Discovered new exit (range 6) 315 | -10/Materials | Crushed by falling debris 327 | -10/Materials | Build established: Mutant 327 | -10/Materials | Crushed by falling debris 327 | -10/Materials | Smashed by cave-in Last Messages --------------- Recycler tracking enabled and active. 00240_ O-16 Technician: "IFF HANDSHAKE FAILED. SECURING TERMINAL." 00243_ ALERT: Hostiles spotted, dispatching reinforcements to Terminal M002. 00255_ K-01 Serf collects debris. 00294_ U-05 Engineer builds a Wall. 00300_ EXIT=FOUND 00312_ Machine disabled. 00315_ The unstable cave ceiling collapses. 00315_ Crushed by falling debris. 00315_ Imp. Terrain Scanner destroyed. 00315_ System corrupted by crushing effect (+4). 00321_ System corrupted: Assault Rifle targeting data glitched. 00324_ G-34 Mercenary destroyed. 00327_ The unstable cave ceiling collapses. 00327_ Crushed by falling debris. 00327_ Lgt. Treads destroyed. 00327_ System corrupted by crushing effect (+4). 00327_ Assault Rifle destroyed. 00327_ System corrupted by crushing effect (+1). Map ----- +----------------------------------------------------+ | | | | | | | | | | | | | | | | | | | | | | | | | | | | | | | | | | | ????????????##############???????#? | | #?????#?????# % ##???????? | | ?????????#??# #?#???#?#? | | ???#???????## ""T"" #???#????# | | ????????????# !! """"" #??#????#? | | ??#???????### !! #????????? | | ???????#?## #######+############### | | ?#???????## ####?# + ## | | ?????????#@#####?# # ## """ | | ???#?????##%""#?## + ## """ | | ???????#?#"!g!"### # ## """ | | ?#???????"" u ""## # ## | | ????????? ## #? ## """ | | ????????# < ## #?####### """ | | ?????##?# ## ##??????# """ | | ????????# ## #?#??#?## | | ????????## ### ############## | | ??????#??## ##?# + " #??#? | | ??????????? #??# # "" =###???? | | ??????????? + "Y #?#???? | | ??????????? # "" #?????? | | ??#???????# # = ###???# | | ??????????# # #?#??#? | | ??????????# """ ########?????? | | ??????????# """ #????????????? | | ??????????# """ ?#???????????? | | ??????????# ?? ???? ????????? | | ??????????# ???? ?????????????? | | ??????????? ???? ?????????????? | | ????????????????? ????????????? | | ????????????????## ?????????????? | | ?????????????????? ?????????????? | | ??????????????????????????????????? | +----------------------------------------------------+ Best States ------------- Heat Dissipation 25 Energy Generation 10 Energy Capacity 125 Matter Stores 300 Matter Capacity 300 Sight Range 16 Terrain Scan Range 16 Terrain Scan Density 10 Evasion (%) 42 Recoil Reduction 2 Item Schematics ----------------- None Robot Schematics ------------------ None Fabricated ------------ Nothing Alien Tech Used ----------------- None Achievements -------------- None Challenges ------------ None Game ------ Seed DispersionActuatorTerminator Manual? 0 Play Time 00:05:36 Cumulative 317.1 hours Start 2022.01.08 @ 20:03:28 End 2022.01.08 @ 20:07:57 Sessions 1 Manual Loads 0 Difficulty Rogue Special Mode None Game No. 242 Rogue 242 Adventurer 0 Explorer 0 Win Type - Total 6 Types 5/0/1/0/0/0/0/0/0 Lore% 54 Gallery% 77 Achievement% 62 Wizard Run 0 Options --------- ASCII 0 Keyboard 0 Movement Numpad Keybinds 0 Fullscreen 2 Font 18/TerminusBold Map View 76x50 Tactical HUD 1 Map Filters NONE Filters NONE Steam 1 RUN: 2c500dc2-2402-4ad4-8e5d-6dc4df49efbd